[Event "FIDE Women World Blitz 2021"]
[Site "Warsaw"]
[Date "2021.12.29"]
[Round "4.1"]
[White "Kucharska, Honorata"]
[Black "Strutinskaia, Galina"]
[Result "1-0"]
[ECO "D05"]
[WhiteElo "2168"]
[BlackElo "2188"]
[Annotator "NA"]
[PlyCount "141"]
[EventDate "2021.12.29"]
[EventType "swiss"]
[EventCountry "POL"]
[Tiebreak "Cut1 Buchholz"]
[SourceTitle "playchess.com"]
[Source "ChessBase"]
[SourceQuality "1"]
[TimeControl "180+2"]

1. d4 {[%emt 0:00:01]} Nf6 {[%emt 0:00:02]} 2. Nf3 {[%emt 0:00:01]} e6 {
[%emt 0:00:01]} 3. e3 {[%emt 0:00:01]} c5 {[%emt 0:00:02]} 4. Bd3 {[%emt 0:00:
02]} b6 {[%emt 0:00:03]} 5. O-O {[%emt 0:00:02]} Bb7 {[%emt 0:00:01]} 6. b3 {
[%emt 0:00:01]} d5 {[%emt 0:00:03]} 7. Bb2 {[%emt 0:00:02]} Nc6 {[%emt 0:00:02]
} 8. a3 {[%emt 0:00:01]} Be7 {[%emt 0:00:04]} 9. Nbd2 {[%emt 0:00:01]} O-O {
[%emt 0:00:02]} 10. Qe2 {[%emt 0:00:08]} cxd4 {[%emt 0:00:04]} 11. exd4 {
[%emt 0:00:01]} Rc8 {[%emt 0:00:01]} 12. Ne5 {[%emt 0:00:09]} g6 {[%emt 0:00:
19]} 13. Rac1 {[%emt 0:00:13]} Nxe5 {[%emt 0:00:06]} 14. dxe5 {[%emt 0:00:01]}
Nd7 {[%emt 0:00:04]} 15. Nf3 {[%emt 0:00:02]} Nc5 {[%emt 0:00:03]} 16. Rfd1 {
[%emt 0:00:12]} Nxd3 {[%emt 0:00:03]} 17. Qxd3 {[%emt 0:00:01]} Rc5 {[%emt 0:
00:12]} 18. Nd4 {[%emt 0:00:06]} Qc8 {[%emt 0:00:02]} 19. Qe3 {[%emt 0:00:13]}
Qc7 {[%emt 0:00:20]} 20. Re1 {[%emt 0:00:16]} Rc8 {[%emt 0:00:03]} 21. Qh6 {
[%emt 0:00:10]} Bf8 {[%emt 0:00:06]} 22. Qh4 {[%emt 0:00:05]} Qd8 {[%emt 0:00:
02]} 23. Qf4 {[%emt 0:00:05]} Ba6 {[%emt 0:00:12]} 24. Re3 {[%emt 0:00:06]} h6
{[%emt 0:00:09]} 25. h4 {[%emt 0:00:07]} Bg7 {[%emt 0:00:02]} 26. Rf3 {[%emt 0:
00:05]} Qc7 {[%emt 0:00:02]} 27. a4 {[%emt 0:00:03]} h5 {[%emt 0:00:19]} 28.
Re1 {[%emt 0:00:11]} Rf8 {[%emt 0:00:10]} 29. Ba3 {[%emt 0:00:02]} Rb8 {
[%emt 0:00:28]} 30. Bxc5 {[%emt 0:00:10]} bxc5 {[%emt 0:00:00]} 31. Nb5 {
[%emt 0:00:18]} Bxb5 {[%emt 0:00:01]} 32. axb5 {[%emt 0:00:02]} Rxb5 {[%emt 0:
00:01]} 33. Qa4 {[%emt 0:00:04]} Rb8 {[%emt 0:00:13]} 34. Rfe3 {[%emt 0:00:02]}
Bh6 {[%emt 0:00:08]} 35. R3e2 {[%emt 0:00:03]} Rb4 {[%emt 0:00:09]} 36. Qe8+ {
[%emt 0:00:04]} Kg7 {[%emt 0:00:01]} 37. g3 {[%emt 0:00:08]} c4 {[%emt 0:00:02]
} 38. bxc4 {[%emt 0:00:03]} Rxc4 {[%emt 0:00:01]} 39. Rb1 {[%emt 0:00:13]} Qc8
{[%emt 0:00:05]} 40. Qxc8 {[%emt 0:00:03]} Rc5 41. Qc7 Rxc7 {[%emt 0:00:03]}
42. Rb5 {[%emt 0:00:02]} Rc8 43. Rb7 {[%emt 0:00:04]} a5 {[%emt 0:00:05]} 44.
Ra7 {[%emt 0:00:01]} Rc5 {[%emt 0:00:01]} 45. Kg2 {[%emt 0:00:04]} Bc1 {
[%emt 0:00:01]} 46. Re1 {[%emt 0:00:03]} Bb2 {[%emt 0:00:01]} 47. Rb1 {[%emt 0:
00:06]} Rxc2 {[%emt 0:00:07]} 48. Rxa5 {[%emt 0:00:04]} Bd4 {[%emt 0:00:05]}
49. Rf1 {[%emt 0:00:04]} Bxe5 {[%emt 0:00:01]} 50. Rb5 {[%emt 0:00:03]} Kf6 {
[%emt 0:00:02]} 51. Rb7 {[%emt 0:00:02]} Bd4 {[%emt 0:00:01]} 52. Rd7 {[%emt 0:
00:03]} Rb2 {[%emt 0:00:06]} 53. Kg1 {[%emt 0:00:09]} Rb3 {[%emt 0:00:02]} 54.
Kg2 {[%emt 0:00:01]} Kg7 {[%emt 0:00:02]} 55. Rd1 {[%emt 0:00:06]} Bb6 {
[%emt 0:00:03]} 56. Rd2 {[%emt 0:00:01]} d4 {[%emt 0:00:04]} 57. Rd6 {[%emt 0:
00:05]} e5 {[%emt 0:00:03]} 58. Rd5 {[%emt 0:00:03]} Kf6 {[%emt 0:00:04]} 59.
f3 {[%emt 0:00:08]} Re3 {[%emt 0:00:03]} 60. Rd6+ {[%emt 0:00:02]} Kf5 {
[%emt 0:00:02]} 61. Rxb6 {[%emt 0:00:01]} f6 {[%emt 0:00:00]} 62. Rd6 {[%emt 0:
00:03]} Rc3 {[%emt 0:00:03]} 63. Rf2 {[%emt 0:00:01]} g5 {[%emt 0:00:00]} 64.
hxg5 {[%emt 0:00:01]} fxg5 {[%emt 0:00:01]} 65. Rd5 {[%emt 0:00:03]} h4 {
[%emt 0:00:05]} 66. gxh4 {[%emt 0:00:01]} gxh4 {[%emt 0:00:01]} 67. Re2 {
[%emt 0:00:01]} h3+ {[%emt 0:00:03]} 68. Kxh3 {[%emt 0:00:02]} Rxf3+ {[%emt 0:
00:01]} 69. Kg2 {[%emt 0:00:01]} Re3 {[%emt 0:00:09]} 70. Rxe3 {[%emt 0:00:01]}
dxe3 {[%emt 0:00:01]} 71. Kf3 {[%emt 0:00:01]} 1-0

[Event "FIDE Women World Blitz 2021"]
[Site "Warsaw"]
[Date "2021.12.29"]
[Round "4.2"]
[White "Buksa, Nataliya"]
[Black "Gunina, Valentina"]
[Result "0-1"]
[ECO "D00"]
[WhiteElo "2199"]
[BlackElo "2480"]
[Annotator "ChessBase"]
[PlyCount "80"]
[EventDate "2021.12.29"]
[EventType "swiss"]
[EventCountry "POL"]
[Tiebreak "Cut1 Buchholz"]
[SourceTitle "playchess.com"]
[Source "ChessBase"]
[SourceQuality "1"]
[TimeControl "180+2"]

1. d4 {[%emt 0:00:01]} d5 {[%emt 0:00:01]} 2. Nc3 {[%emt 0:00:01]} Nf6 {
[%emt 0:00:11]} 3. Bf4 {[%emt 0:00:01]} e6 {[%emt 0:00:09]} 4. Nb5 {[%emt 0:00:
01]} Na6 {[%emt 0:00:03]} 5. e3 {[%emt 0:00:01]} Be7 {[%emt 0:00:02]} 6. Nf3 {
[%emt 0:00:01]} O-O {[%emt 0:00:01]} 7. Bd3 {[%emt 0:00:01]} c6 {[%emt 0:00:07]
} 8. Nc3 {[%emt 0:00:01]} c5 {[%emt 0:00:19]} 9. O-O {[%emt 0:00:12]} c4 {
[%emt 0:00:01]} 10. Be2 {[%emt 0:00:01]} Bd6 {[%emt 0:00:04]} 11. Ne5 {[%emt 0:
00:15]} Nb4 {[%emt 0:00:22]} 12. Bg3 {[%emt 0:00:40]} Nc6 {[%emt 0:00:06]} 13.
f4 {[%emt 0:00:01]} Bb4 {[%emt 0:00:14]} 14. Nb1 {[%emt 0:00:04]} Ne4 {[%emt 0:
00:02]} 15. c3 {[%emt 0:00:10]} Bd6 {[%emt 0:00:05]} 16. Nd2 {[%emt 0:00:01]}
Nxg3 {[%emt 0:00:19]} 17. hxg3 {[%emt 0:00:00]} Ne7 {[%emt 0:00:01]} 18. g4 {
[%emt 0:00:05]} b5 {[%emt 0:00:01]} 19. a3 {[%emt 0:00:08]} Bb7 {[%emt 0:00:05]
} 20. Qe1 {[%emt 0:00:05]} a5 {[%emt 0:00:03]} 21. Bd1 {[%emt 0:00:11]} f6 {
[%emt 0:00:05]} 22. Nef3 {[%emt 0:00:02]} b4 {[%emt 0:00:01]} 23. Qh4 {[%emt 0:
00:46]} h6 {[%emt 0:00:25]} 24. Bc2 {[%emt 0:00:04]} bxa3 {[%emt 0:00:04]} 25.
bxa3 {[%emt 0:00:01]} Bc6 {[%emt 0:00:01]} 26. g5 {[%emt 0:00:03]} fxg5 {
[%emt 0:00:06]} 27. fxg5 {[%emt 0:00:01]} Nf5 {[%emt 0:00:01]} 28. Bxf5 {
[%emt 0:00:21]} Rxf5 {[%emt 0:00:01]} 29. g4 {[%emt 0:00:37]} hxg5 {[%emt 0:00:
06]} 30. Qh5 {[%emt 0:00:00]} Be8 {[%emt 0:00:01]} 31. Qh3 {[%emt 0:00:01]} Rf6
{[%emt 0:00:03]} 32. e4 {[%emt 0:00:02]} Bf4 {[%emt 0:00:03]} 33. Rab1 {
[%emt 0:00:04]} Rh6 {[%emt 0:00:01]} 34. Qg2 {[%emt 0:00:01]} Bg6 {[%emt 0:00:
01]} 35. Rb6 {[%emt 0:00:05]} Qxb6 {[%emt 0:00:02]} 36. exd5 {[%emt 0:00:02]}
exd5 {[%emt 0:00:01]} 37. Ne5 {[%emt 0:00:02]} Rd8 {[%emt 0:00:05]} 38. Ndf3 {
[%emt 0:00:01]} Be4 {[%emt 0:00:02]} 39. Qe2 {[%emt 0:00:02]} Bxe5 {[%emt 0:00:
03]} 40. Nxe5 {[%emt 0:00:01]} Rh1+ {[%emt 0:00:01]} 0-1

[Event "FIDE Women World Blitz 2021"]
[Site "Warsaw"]
[Date "2021.12.29"]
[Round "4.2"]
[White "Da Silva, Cibele Florencio"]
[Black "Maisuradze, Nino"]
[Result "0-1"]
[ECO "B30"]
[WhiteElo "1405"]
[BlackElo "2175"]
[Annotator "NA"]
[PlyCount "54"]
[EventDate "2021.12.29"]
[EventType "swiss"]
[EventCountry "POL"]
[Tiebreak "Cut1 Buchholz"]
[SourceTitle "playchess.com"]
[Source "ChessBase"]
[SourceQuality "1"]
[TimeControl "180+2"]

1. e4 {[%emt 0:00:02]} c5 {[%emt 0:00:00]} 2. Nc3 {[%emt 0:00:01]} Nc6 {
[%emt 0:00:01]} 3. Nf3 {[%emt 0:00:02]} a6 {[%emt 0:00:33]} 4. Bc4 {[%emt 0:00:
02]} b5 {[%emt 0:00:03]} 5. Bd5 {[%emt 0:00:02]} e6 {[%emt 0:00:10]} 6. Bxc6 {
[%emt 0:00:03]} dxc6 {[%emt 0:00:00]} 7. d3 {[%emt 0:00:02]} Nf6 {[%emt 0:00:
17]} 8. Bg5 {[%emt 0:00:05]} h6 {[%emt 0:00:02]} 9. Bxf6 {[%emt 0:00:04]} Qxf6
{[%emt 0:00:02]} 10. Rb1 {[%emt 0:00:03]} Bd7 {[%emt 0:00:06]} 11. e5 {[%emt 0:
00:02]} Qg6 {[%emt 0:00:06]} 12. g3 {[%emt 0:00:06]} Be7 {[%emt 0:00:01]} 13.
Ne4 {[%emt 0:00:04]} O-O {[%emt 0:00:04]} 14. O-O {[%emt 0:00:11]} c4 {[%emt 0:
00:01]} 15. Nc3 {[%emt 0:00:12]} cxd3 {[%emt 0:00:02]} 16. Qxd3 {[%emt 0:00:05]
} Qxd3 {[%emt 0:00:02]} 17. cxd3 {[%emt 0:00:02]} c5 {[%emt 0:00:03]} 18. Rbd1
{[%emt 0:00:03]} Bc6 {[%emt 0:00:01]} 19. Nd2 {[%emt 0:00:18]} Rfd8 {[%emt 0:
00:00]} 20. Nde4 {[%emt 0:00:11]} b4 {[%emt 0:00:01]} 21. Nb1 {[%emt 0:00:09]}
c4 {[%emt 0:00:04]} 22. Ned2 {[%emt 0:00:50]} cxd3 {[%emt 0:00:03]} 23. Nc4 {
[%emt 0:00:10]} Bf3 {[%emt 0:00:04]} 24. Rc1 {[%emt 0:00:20]} Rac8 {[%emt 0:00:
29]} 25. Ncd2 {[%emt 0:00:04]} Be2 {[%emt 0:00:02]} 26. Rfe1 {[%emt 0:00:15]}
Rc2 {[%emt 0:00:01]} 27. Rxc2 {[%emt 0:00:11]} dxc2 {[%emt 0:00:01]} 0-1

[Event "FIDE Women World Blitz 2021"]
[Site "Warsaw"]
[Date "2021.12.29"]
[Round "4.3"]
[White "Goryachkina, Aleksandra"]
[Black "Osmak, Yuliia"]
[Result "1-0"]
[ECO "E48"]
[WhiteElo "2604"]
[BlackElo "2198"]
[Annotator "ChessBase"]
[PlyCount "141"]
[EventDate "2021.12.29"]
[EventType "swiss"]
[EventCountry "POL"]
[Tiebreak "Cut1 Buchholz"]
[SourceTitle "playchess.com"]
[Source "ChessBase"]
[SourceQuality "1"]
[TimeControl "180+2"]

1. d4 {[%emt 0:00:01]} Nf6 {[%emt 0:00:01]} 2. c4 {[%emt 0:00:02]} e6 {[%emt 0:
00:01]} 3. Nc3 {[%emt 0:00:02]} Bb4 {[%emt 0:00:01]} 4. e3 {[%emt 0:00:02]} O-O
{[%emt 0:00:04]} 5. Bd3 {[%emt 0:00:01]} c5 {[%emt 0:00:11]} 6. Nge2 {[%emt 0:
00:04]} cxd4 {[%emt 0:00:16]} 7. exd4 {[%emt 0:00:02]} d5 {[%emt 0:00:01]} 8.
cxd5 {[%emt 0:00:02]} Nxd5 {[%emt 0:00:11]} 9. O-O {[%emt 0:00:03]} Nc6 {
[%emt 0:00:10]} 10. Nxd5 {[%emt 0:00:02]} exd5 {[%emt 0:00:12]} 11. Nf4 {
[%emt 0:00:08]} g6 {[%emt 0:01:02]} 12. Be3 {[%emt 0:00:08]} Be7 {[%emt 0:00:
11]} 13. Qf3 {[%emt 0:00:20]} Nb4 {[%emt 0:00:31]} 14. Bb1 {[%emt 0:00:06]} Bf6
{[%emt 0:00:12]} 15. a3 {[%emt 0:00:10]} Nc6 {[%emt 0:00:01]} 16. Rd1 {[%emt 0:
01:01]} Be6 {[%emt 0:00:01]} 17. Ba2 {[%emt 0:00:02]} Ne7 {[%emt 0:00:03]} 18.
Rac1 {[%emt 0:00:10]} Bg7 {[%emt 0:00:02]} 19. Rc5 {[%emt 0:00:12]} b6 {
[%emt 0:00:01]} 20. Rc3 {[%emt 0:00:06]} Qd7 {[%emt 0:00:03]} 21. h3 {[%emt 0:
00:02]} Rac8 {[%emt 0:00:02]} 22. Rdc1 {[%emt 0:00:11]} Rxc3 {[%emt 0:00:01]}
23. Rxc3 {[%emt 0:00:01]} Nf5 {[%emt 0:00:03]} 24. Bxd5 {[%emt 0:00:20]} Bxd5 {
[%emt 0:00:19]} 25. Qxd5 {[%emt 0:00:04]} Qxd5 {[%emt 0:00:03]} 26. Nxd5 {
[%emt 0:00:01]} Bxd4 {[%emt 0:00:02]} 27. Bxd4 {[%emt 0:00:03]} Nxd4 {[%emt 0:
00:01]} 28. Rc7 {[%emt 0:00:02]} Ra8 {[%emt 0:00:02]} 29. Nf6+ {[%emt 0:00:13]}
Kg7 {[%emt 0:00:01]} 30. Ne4 {[%emt 0:00:01]} Ne6 {[%emt 0:00:02]} 31. Rd7 {
[%emt 0:00:01]} Nf8 {[%emt 0:00:03]} 32. Re7 {[%emt 0:00:02]} Ne6 {[%emt 0:00:
06]} 33. Nd6 {[%emt 0:00:03]} Nd8 {[%emt 0:00:03]} 34. Rd7 {[%emt 0:00:06]} a5
{[%emt 0:00:01]} 35. Ne8+ {[%emt 0:00:08]} Kf8 {[%emt 0:00:02]} 36. Nc7 {
[%emt 0:00:01]} Rb8 {[%emt 0:00:02]} 37. Nb5 {[%emt 0:00:04]} Ne6 {[%emt 0:00:
03]} 38. Nd6 {[%emt 0:00:02]} Rd8 {[%emt 0:00:03]} 39. Rxd8+ {[%emt 0:00:04]}
Nxd8 {[%emt 0:00:01]} 40. Kf1 {[%emt 0:00:01]} Ne6 {[%emt 0:00:03]} 41. Nc4 {
[%emt 0:00:01]} b5 {[%emt 0:00:02]} 42. Nxa5 {[%emt 0:00:01]} Nc5 {[%emt 0:00:
01]} 43. Ke2 {[%emt 0:00:03]} Ke7 {[%emt 0:00:02]} 44. Ke3 {[%emt 0:00:03]} Kd6
{[%emt 0:00:02]} 45. b4 {[%emt 0:00:03]} Na4 {[%emt 0:00:01]} 46. Nb3 {[%emt 0:
00:01]} Nb6 {[%emt 0:00:02]} 47. Nd2 {[%emt 0:00:03]} Kd5 {[%emt 0:00:02]} 48.
Kd3 {[%emt 0:00:01]} f5 {[%emt 0:00:03]} 49. Nb1 {[%emt 0:00:01]} Nc4 {[%emt 0:
00:03]} 50. Nc3+ {[%emt 0:00:06]} Kc6 {[%emt 0:00:00]} 51. Nb1 {[%emt 0:00:03]}
Kd5 {[%emt 0:00:01]} 52. Kc3 {[%emt 0:00:01]} Nb6 {[%emt 0:00:04]} 53. Kb3 {
[%emt 0:00:02]} Kd4 {[%emt 0:00:03]} 54. Nc3 {[%emt 0:00:01]} Kd3 {[%emt 0:00:
02]} 55. Nxb5 {[%emt 0:00:01]} Ke2 {[%emt 0:00:01]} 56. a4 {[%emt 0:00:01]}
Kxf2 {[%emt 0:00:02]} 57. a5 {[%emt 0:00:01]} Na8 {[%emt 0:00:01]} 58. Nd4 {
[%emt 0:00:02]} Kxg2 {[%emt 0:00:01]} 59. b5 {[%emt 0:00:01]} Nc7 {[%emt 0:00:
05]} 60. b6 {[%emt 0:00:02]} Na6 {[%emt 0:00:01]} 61. Kc4 {[%emt 0:00:01]} f4 {
[%emt 0:00:01]} 62. Kb5 {[%emt 0:00:00]} Nb8 {[%emt 0:00:01]} 63. a6 {[%emt 0:
00:01]} Nxa6 {[%emt 0:00:05]} 64. Kxa6 {[%emt 0:00:01]} f3 {[%emt 0:00:02]} 65.
Nxf3 {[%emt 0:00:01]} Kxf3 {[%emt 0:00:01]} 66. b7 {[%emt 0:00:01]} Kg3 {
[%emt 0:00:01]} 67. b8=Q+ Kxh3 {[%emt 0:00:01]} 68. Qh8 {[%emt 0:00:04]} h5 {
[%emt 0:00:01]} 69. Qh6 {[%emt 0:00:01]} h4 {[%emt 0:00:01]} 70. Qg5 {[%emt 0:
00:01]} Kh2 {[%emt 0:00:02]} 71. Qxh4+ {[%emt 0:00:01]} 1-0

[Event "FIDE Women World Blitz 2021"]
[Site "Warsaw"]
[Date "2021.12.29"]
[Round "4.3"]
[White "Sandu, Mihaela"]
[Black "Bartel, Marta"]
[Result "1-0"]
[ECO "B58"]
[WhiteElo "2244"]
[BlackElo "2192"]
[Annotator "NA"]
[PlyCount "77"]
[EventDate "2021.12.29"]
[EventType "swiss"]
[EventCountry "POL"]
[Tiebreak "Cut1 Buchholz"]
[SourceTitle "playchess.com"]
[Source "ChessBase"]
[SourceQuality "1"]
[TimeControl "180+2"]

1. e4 {[%emt 0:00:01]} c5 {[%emt 0:00:01]} 2. Nf3 {[%emt 0:00:02]} Nc6 {
[%emt 0:00:01]} 3. d4 {[%emt 0:00:00]} cxd4 {[%emt 0:00:01]} 4. Nxd4 {[%emt 0:
00:01]} Nf6 {[%emt 0:00:01]} 5. Nc3 {[%emt 0:00:01]} d6 {[%emt 0:00:01]} 6. Be2
{[%emt 0:00:02]} e5 {[%emt 0:00:01]} 7. Nf3 {[%emt 0:00:01]} h6 {[%emt 0:00:01]
} 8. O-O {[%emt 0:00:02]} Be7 {[%emt 0:00:04]} 9. Re1 {[%emt 0:00:03]} O-O {
[%emt 0:00:04]} 10. h3 {[%emt 0:00:01]} Be6 {[%emt 0:00:06]} 11. Bf1 {[%emt 0:
00:03]} a6 {[%emt 0:00:03]} 12. b3 {[%emt 0:00:20]} b5 {[%emt 0:00:08]} 13. a4
{[%emt 0:00:06]} b4 {[%emt 0:00:21]} 14. Nd5 {[%emt 0:00:02]} Nd7 {[%emt 0:00:
02]} 15. a5 {[%emt 0:00:13]} Bxd5 {[%emt 0:00:28]} 16. exd5 {[%emt 0:00:01]}
Nxa5 {[%emt 0:00:07]} 17. Bd2 {[%emt 0:00:02]} Qb6 {[%emt 0:00:08]} 18. Ra4 {
[%emt 0:00:02]} f5 {[%emt 0:00:38]} 19. Rxb4 {[%emt 0:00:07]} Qc7 {[%emt 0:00:
00]} 20. Nd4 {[%emt 0:00:06]} Rf6 {[%emt 0:00:30]} 21. Ne6 {[%emt 0:00:10]} Qc8
{[%emt 0:00:08]} 22. Ra4 {[%emt 0:00:26]} Nb7 {[%emt 0:00:12]} 23. Rxa6 {
[%emt 0:00:02]} Ndc5 {[%emt 0:00:05]} 24. Rc6 {[%emt 0:00:11]} Qd7 {[%emt 0:00:
07]} 25. Rc7 {[%emt 0:00:16]} Qe8 {[%emt 0:00:01]} 26. b4 {[%emt 0:00:13]} Nxe6
{[%emt 0:00:02]} 27. dxe6 {[%emt 0:00:01]} Nd8 {[%emt 0:00:02]} 28. Bc4 {
[%emt 0:00:05]} Kh7 {[%emt 0:00:04]} 29. Qf3 {[%emt 0:00:04]} Rb8 {[%emt 0:00:
03]} 30. b5 {[%emt 0:00:07]} e4 {[%emt 0:00:05]} 31. Qe2 {[%emt 0:00:09]} Nxe6
{[%emt 0:00:01]} 32. Bxe6 {[%emt 0:00:17]} Rxe6 {[%emt 0:00:01]} 33. c4 {
[%emt 0:00:03]} Bf6 {[%emt 0:00:03]} 34. Bf4 {[%emt 0:00:07]} Qd8 {[%emt 0:00:
06]} 35. Ra7 {[%emt 0:00:03]} Qb6 {[%emt 0:00:02]} 36. Be3 {[%emt 0:00:03]} Bd4
{[%emt 0:00:01]} 37. Bxd4 {[%emt 0:00:06]} Qxd4 {[%emt 0:00:01]} 38. Rf7 {
[%emt 0:00:02]} Qxc4 {[%emt 0:00:05]} 39. Qxc4 {[%emt 0:00:01]} 1-0

[Event "FIDE Women World Blitz 2021"]
[Site "Warsaw"]
[Date "2021.12.29"]
[Round "4.4"]
[White "Vantika Agrawal"]
[Black "Muzychuk, Mariya"]
[Result "0-1"]
[ECO "D11"]
[WhiteElo "2329"]
[BlackElo "2536"]
[Annotator "ChessBase"]
[PlyCount "102"]
[EventDate "2021.12.29"]
[EventType "swiss"]
[EventCountry "POL"]
[Tiebreak "Cut1 Buchholz"]
[SourceTitle "playchess.com"]
[Source "ChessBase"]
[SourceQuality "1"]
[TimeControl "180+2"]

1. d4 {[%emt 0:00:01]} d5 {[%emt 0:00:00]} 2. c4 {[%emt 0:00:00]} c6 {[%emt 0:
00:01]} 3. Nf3 {[%emt 0:00:02]} Nf6 {[%emt 0:00:00]} 4. e3 {[%emt 0:00:01]} Bg4
{[%emt 0:00:02]} 5. h3 {[%emt 0:00:02]} Bh5 {[%emt 0:00:04]} 6. g4 {[%emt 0:00:
05]} Bg6 {[%emt 0:00:01]} 7. Ne5 {[%emt 0:00:01]} Nbd7 {[%emt 0:00:08]} 8. Nxg6
{[%emt 0:00:03]} hxg6 {[%emt 0:00:01]} 9. Bg2 {[%emt 0:00:13]} e6 {[%emt 0:00:
02]} 10. Nd2 {[%emt 0:00:08]} Bd6 {[%emt 0:00:05]} 11. O-O {[%emt 0:00:28]} g5
{[%emt 0:00:13]} 12. Re1 {[%emt 0:00:04]} Nf8 {[%emt 0:00:09]} 13. Qb3 {
[%emt 0:00:21]} Qe7 {[%emt 0:00:28]} 14. e4 {[%emt 0:00:07]} dxe4 {[%emt 0:00:
04]} 15. Nxe4 {[%emt 0:00:08]} Nxe4 {[%emt 0:00:02]} 16. Rxe4 {[%emt 0:00:09]}
Ng6 {[%emt 0:00:08]} 17. d5 {[%emt 0:00:17]} cxd5 {[%emt 0:00:11]} 18. cxd5 {
[%emt 0:00:02]} e5 {[%emt 0:00:01]} 19. Be3 {[%emt 0:00:31]} f6 {[%emt 0:00:05]
} 20. Rc4 {[%emt 0:00:08]} Kf7 {[%emt 0:00:13]} 21. Rac1 {[%emt 0:00:02]} Rhd8
{[%emt 0:00:07]} 22. Be4 {[%emt 0:00:08]} Nf4 {[%emt 0:00:09]} 23. Bxf4 {
[%emt 0:00:13]} gxf4 {[%emt 0:00:01]} 24. Rc7 {[%emt 0:00:13]} Rd7 {[%emt 0:00:
29]} 25. Rxd7 {[%emt 0:00:01]} Qxd7 {[%emt 0:00:00]} 26. Bf5 {[%emt 0:00:02]}
Qe7 {[%emt 0:00:01]} 27. Be6+ {[%emt 0:00:02]} Kf8 {[%emt 0:00:00]} 28. Qd3 {
[%emt 0:00:03]} g5 {[%emt 0:00:05]} 29. Kg2 {[%emt 0:00:07]} Kg7 {[%emt 0:00:
01]} 30. h4 {[%emt 0:00:10]} gxh4 {[%emt 0:00:06]} 31. Rh1 {[%emt 0:00:02]} Rh8
{[%emt 0:00:01]} 32. Rh3 {[%emt 0:00:05]} Qe8 {[%emt 0:00:03]} 33. Qb3 {
[%emt 0:00:02]} b6 {[%emt 0:00:01]} 34. Qc2 {[%emt 0:00:03]} Qg6 {[%emt 0:00:
05]} 35. Qxg6+ {[%emt 0:00:03]} Kxg6 {[%emt 0:00:01]} 36. Rc3 {[%emt 0:00:01]}
Kg5 {[%emt 0:00:15]} 37. Kh3 {[%emt 0:00:02]} e4 {[%emt 0:00:04]} 38. Bf5 {
[%emt 0:00:02]} Re8 {[%emt 0:00:07]} 39. Rc2 {[%emt 0:00:03]} e3 {[%emt 0:00:
05]} 40. fxe3 {[%emt 0:00:02]} Rxe3+ {[%emt 0:00:01]} 41. Kg2 {[%emt 0:00:01]}
h3+ {[%emt 0:00:03]} 42. Kf1 {[%emt 0:00:03]} Kh4 {[%emt 0:00:03]} 43. Kf2 {
[%emt 0:00:03]} Bc5 {[%emt 0:00:03]} 44. Kf1 {[%emt 0:00:02]} Kg3 {[%emt 0:00:
01]} 45. a3 {[%emt 0:00:02]} Rf3+ {[%emt 0:00:10]} 46. Ke1 {[%emt 0:00:01]} h2
{[%emt 0:00:08]} 47. Rxh2 {[%emt 0:00:03]} Kxh2 {[%emt 0:00:01]} 48. b4 {
[%emt 0:00:01]} Bd6 {[%emt 0:00:04]} 49. Ke2 {[%emt 0:00:02]} Rxa3 {[%emt 0:00:
01]} 50. b5 {[%emt 0:00:03]} Kg3 {[%emt 0:00:02]} 51. Be6 {[%emt 0:00:02]} f3+
{[%emt 0:00:01]} 0-1

[Event "FIDE Women World Blitz 2021"]
[Site "Warsaw"]
[Date "2021.12.29"]
[Round "4.4"]
[White "Szczotka, Klara"]
[Black "Bivol, Alina"]
[Result "0-1"]
[ECO "E90"]
[WhiteElo "1584"]
[BlackElo "2377"]
[Annotator "NA"]
[PlyCount "100"]
[EventDate "2021.12.29"]
[EventType "swiss"]
[EventCountry "POL"]
[Tiebreak "Cut1 Buchholz"]
[SourceTitle "playchess.com"]
[Source "ChessBase"]
[SourceQuality "1"]
[TimeControl "180+2"]

1. d4 {[%emt 0:00:01]} Nf6 {[%emt 0:00:04]} 2. c4 {[%emt 0:00:05]} g6 {[%emt 0:
00:03]} 3. Nc3 {[%emt 0:00:01]} c5 {[%emt 0:00:06]} 4. d5 {[%emt 0:00:01]} d6 {
[%emt 0:00:02]} 5. e4 {[%emt 0:00:06]} Bg7 {[%emt 0:00:01]} 6. h3 {[%emt 0:00:
02]} O-O {[%emt 0:00:06]} 7. Nf3 {[%emt 0:00:01]} e5 {[%emt 0:00:01]} 8. Be3 {
[%emt 0:00:06]} a6 {[%emt 0:00:17]} 9. a4 {[%emt 0:00:01]} h6 {[%emt 0:00:05]}
10. Be2 {[%emt 0:00:11]} Nbd7 {[%emt 0:00:27]} 11. g4 {[%emt 0:00:10]} Qa5 {
[%emt 0:00:20]} 12. Qd2 {[%emt 0:00:38]} h5 {[%emt 0:00:06]} 13. Ng5 {[%emt 0:
00:32]} hxg4 {[%emt 0:00:36]} 14. hxg4 {[%emt 0:00:03]} Nb6 {[%emt 0:00:03]}
15. f3 {[%emt 0:00:11]} Qb4 {[%emt 0:00:06]} 16. Nd1 {[%emt 0:00:34]} Qxd2+ {
[%emt 0:00:20]} 17. Kxd2 {[%emt 0:00:03]} Bd7 {[%emt 0:00:10]} 18. a5 {[%emt 0:
00:03]} Nc8 {[%emt 0:00:02]} 19. Nc3 {[%emt 0:00:10]} b6 {[%emt 0:00:01]} 20.
axb6 {[%emt 0:00:05]} Nxb6 {[%emt 0:00:01]} 21. Rhb1 {[%emt 0:00:07]} a5 {
[%emt 0:00:02]} 22. Nb5 {[%emt 0:00:09]} Bxb5 {[%emt 0:00:07]} 23. cxb5 {
[%emt 0:00:01]} Rfb8 {[%emt 0:00:01]} 24. Kc3 {[%emt 0:00:07]} Kf8 {[%emt 0:00:
01]} 25. Nh3 {[%emt 0:00:03]} Ke7 {[%emt 0:00:01]} 26. Nf2 {[%emt 0:00:01]}
Nfd7 {[%emt 0:00:08]} 27. Bg5+ {[%emt 0:00:14]} Bf6 {[%emt 0:00:03]} 28. Bxf6+
{[%emt 0:00:01]} Kxf6 {[%emt 0:00:04]} 29. Nd1 {[%emt 0:00:02]} a4 {[%emt 0:00:
03]} 30. Ne3 {[%emt 0:00:01]} Rh8 {[%emt 0:00:02]} 31. Rh1 {[%emt 0:00:03]}
Rxh1 {[%emt 0:00:08]} 32. Rxh1 {[%emt 0:00:01]} a3 {[%emt 0:00:00]} 33. bxa3 {
[%emt 0:00:04]} Rxa3+ {[%emt 0:00:01]} 34. Kd2 {[%emt 0:00:00]} Ra2+ {[%emt 0:
00:04]} 35. Kd3 {[%emt 0:00:04]} c4+ {[%emt 0:00:01]} 36. Nxc4 {[%emt 0:00:04]}
Nxc4 {[%emt 0:00:00]} 37. Kxc4 {[%emt 0:00:02]} Rxe2 {[%emt 0:00:01]} 38. Rb1 {
[%emt 0:00:01]} Nb6+ {[%emt 0:00:02]} 39. Kd3 {[%emt 0:00:02]} Ra2 {[%emt 0:00:
06]} 40. Rc1 {[%emt 0:00:01]} Nd7 {[%emt 0:00:11]} 41. Rc6 {[%emt 0:00:02]} Ke7
{[%emt 0:00:01]} 42. Kc3 {[%emt 0:00:04]} Ra3+ {[%emt 0:00:02]} 43. Kb4 {
[%emt 0:00:01]} Rxf3 {[%emt 0:00:02]} 44. b6 {[%emt 0:00:01]} Rf1 {[%emt 0:00:
01]} 45. Ka5 {[%emt 0:00:05]} Ra1+ {[%emt 0:00:03]} 46. Kb5 {[%emt 0:00:01]}
Rb1+ {[%emt 0:00:01]} 47. Ka6 {[%emt 0:00:02]} Rxb6+ {[%emt 0:00:05]} 48. Rxb6
{[%emt 0:00:01]} Nxb6 {[%emt 0:00:01]} 49. Kxb6 {[%emt 0:00:02]} f5 {[%emt 0:
00:01]} 50. gxf5 {[%emt 0:00:05]} gxf5 {[%emt 0:00:01]} 0-1